bitfinex/quotes_SOLUSD_20241007
["timestamp","ask_amount","ask_price","bid_price","bid_amount"]
[1728315853747,6.6872,149.54,149.5,8.02599856]
[1728315854148,6.6868,149.55,149.51,6.6883]
[1728315854465,16.713,149.59,149.44,3.49130985]
[1728315854466,7.30412114,149.57,149.44,3.49130985]
[1728315854648,7.30412114,149.57,149.43,22.3110554]
[1728315855172,6.6902,149.48,149.44,6.6913]
[1728315855344,6.6895,149.49,149.45,6.6911]
[1728315855750,23.776884,149.52,149.44,6.6915]
[1728315855947,6.6895,149.49,149.45,6.6911]
[1728315856152,23.776884,149.52,149.43,35.54944555]
[1728315856366,6.6886,149.51,149.45,35.54734555]
[1728315856557,6.6886,149.51,149.47,6.6902]
[1728315857772,6.6898,149.48,149.45,16.7276]
[1728315858347,6.6895,149.49,149.45,16.7276]
[1728315858651,6.6895,149.49,149.45,23.4187]
[1728315859860,23.776884,149.53,149.43,18.81974555]
[1728315860063,6.6908,149.46,149.42,38.7428]
[1728315860871,6.6904,149.47,149.42,38.7428]
[1728315861553,6.6904,149.47,149.43,6.692]
[1728315862050,6.69,149.48,149.44,6.6913]
[1728315863558,6.6895,149.49,149.45,6.6911]
[1728315864365,23.776884,149.51,149.43,18.81974555]
[1728315864571,6.6898,149.48,149.44,6.6916]
[1728315865971,6.6906,149.47,149.43,6.692]
[1728315866675,40.498684,149.51,149.43,6.692]
[1728315866865,6.6907,149.46,149.42,38.7428]
[1728315867454,6.6907,149.46,149.42,38.6528]
[1728315868051,40.498684,149.51,149.42,31.9604]
[1728315868258,6.6894,149.5,149.44,16.7284]
[1728315868479,6.6894,149.5,149.46,6.6906]
[1728315868651,6.6894,149.49,149.46,6.6906]
[1728315868848,6.5394,149.49,149.45,25.51074555]
[1728315869077,6.5394,149.49,149.45,6.691]
[1728315869464,48.6933,149.56,149.44,16.7284]
[1728315869668,48.6933,149.56,149.44,23.4198]
[1728315869669,6.6899,149.48,149.44,23.4198]
[1728315870272,16.7204,149.52,149.44,16.7284]
[1728315870461,6.6895,149.49,149.45,6.6911]
[1728315871079,16.7204,149.52,149.44,16.7284]
[1728315871390,6.6904,149.47,149.44,16.7284]
[1728315871557,6.6908,149.46,149.42,21.922]
[1728315872053,6.6912,149.45,149.42,21.922]
[1728315872462,6.6912,149.45,149.42,21.912]
[1728315872775,33.4397,149.53,149.42,15.2197]
[1728315872974,6.6912,149.45,149.42,15.2197]
[1728315875076,6.6912,149.45,149.42,21.9122]
[1728315877680,6.6909,149.46,149.42,21.9121]
[1728315878268,6.6901,149.48,149.44,6.6913]
[1728315878462,6.6901,149.48,149.43,16.7298]
[1728315878463,6.6906,149.47,149.43,23.4217]
[1728315880184,6.6906,149.47,149.43,26.91300985]
[1728315882408,6.6906,149.47,149.44,3.49130985]
[1728315883280,6.6907,149.46,149.44,3.49130985]
[1728315883488,6.6907,149.46,149.43,20.22110985]
[1728315884070,6.6907,149.46,149.44,3.49130985]
[1728315885403,23.776884,149.5,149.44,3.49130985]
[1728315885404,6.6903,149.47,149.44,3.49130985]
[1728315885600,6.6903,149.47,149.44,10.18280985]
[1728315886298,6.6903,149.47,149.45,3.49130985]
[1728315886672,23.776884,149.5,149.44,3.49130985]
[1728315886879,6.6907,149.46,149.44,3.49130985]
[1728315887584,6.6912,149.45,149.44,3.49130985]
[1728315887900,6.6909,149.46,149.44,3.49130985]
[1728315888906,6.6909,149.46,149.44,15.54256283]
[1728315889389,6.6904,149.47,149.44,15.54256283]
[1728315890176,6.6901,149.48,149.45,4.82943015]
[1728315890375,6.6901,149.48,149.46,12.05125298]
[1728315890594,6.6896,149.49,149.47,1.33795825]
[1728315890785,6.6896,149.49,149.46,12.05125298]
[1728315890983,6.6899,149.48,149.46,12.05125298]
[1728315892877,6.6899,149.48,149.46,15.54256283]
[1728315893278,16.7208,149.52,149.46,15.54256283]
[1728315893279,6.6895,149.49,149.46,15.54256283]
[1728315893886,6.6899,149.48,149.46,15.54256283]
[1728315898799,6.6895,149.49,149.46,15.54256283]
[1728315899012,6.6888,149.51,149.48,12.05125298]
[1728315899997,6.6889,149.5,149.48,12.05125298]
[1728315900588,16.7143,149.58,149.49,1.33772869]
[1728315900802,6.6865,149.56,149.53,12.05125298]
[1728315900986,6.6871,149.54,149.53,12.05125298]
[1728315901304,6.6871,149.54,149.51,12.05125298]
[1728315902608,6.6871,149.54,149.51,13.38868525]
[1728315903087,6.6871,149.54,149.51,12.05125298]
[1728315904487,6.6883,149.52,149.48,10.18080985]
[1728315904930,15.5219,149.54,149.47,3.49130985]
[1728315905217,6.6898,149.48,149.46,3.49130985]
[1728315905392,15.5219,149.54,149.46,3.49130985]
[1728315905393,6.6874,149.54,149.5,6.6885]
[1728315905586,6.6874,149.54,149.49,15.283]
[1728315905587,15.5219,149.58,149.51,12.05125298]
[1728315905814,6.688,149.52,149.51,12.05125298]
[1728315906007,6.688,149.52,149.49,27.33425298]
[1728315906398,15.5219,149.58,149.51,12.05125298]
[1728315906709,6.687,149.55,149.53,12.05125298]
[1728315907108,6.6874,149.54,149.51,12.05125298]
[1728315907290,16.7151,149.57,149.49,18.77430985]
[1728315907491,6.6885,149.51,149.48,21.57686283]
[1728315908588,6.6882,149.52,149.48,16.21530985]
[1728315909515,6.586,149.6,149.49,1.33758141]
[1728315909818,23.776884,149.57,149.5,18.82015927]
[1728315910112,23.776884,149.57,149.51,1.33740953]
[1728315910410,23.776884,149.57,149.5,18.82015927]
[1728315911202,6.6876,149.53,149.5,18.82015927]
[1728315911585,23.776884,149.57,149.49,16.723]
[1728315911812,6.6882,149.52,149.48,35.03556912]
[1728315912023,6.6885,149.51,149.48,9.52560985]
[1728315912402,6.6882,149.52,149.48,12.7241]
[1728315913019,16.716,149.56,149.48,6.0343]
[1728315913190,6.6885,149.51,149.48,6.0343]
[1728315913391,6.6882,149.52,149.48,12.724]
[1728315913596,6.6877,149.53,149.49,6.6893]
[1728315913792,6.688,149.52,149.48,48.26865927]
[1728315914207,16.716,149.56,149.48,41.57885927]
[1728315914394,6.6878,149.53,149.49,6.6894]
[1728315914605,6.6886,149.51,149.48,24.85445927]
[1728315915118,6.6894,149.49,149.47,3.49130985]
[1728315915417,6.5571,149.54,149.45,3.49130985]
[1728315915619,6.5571,149.54,149.43,6.93711985]
[1728315915620,23.776884,149.53,149.44,3.49130985]
[1728315915788,40.496684,149.53,149.46,6.6903]
[1728315916115,16.7128,149.59,149.5,18.82015927]
[1728315916299,6.6868,149.55,149.51,1.33741846]
[1728315916620,6.6868,149.55,149.5,42.22995927]
[1728315916913,15.3907,149.62,149.48,6.6894]
[1728315917111,6.6882,149.52,149.47,61.17576912]
[1728315917314,6.6891,149.5,149.47,22.1392]
[1728315917495,6.689,149.5,149.47,15.5483]
[1728315918913,6.689,149.5,149.48,1.33779501]
[1728315919225,6.689,149.5,149.47,15.5483]
[1728315919394,6.6885,149.51,149.47,22.2385]
[1728315919594,6.6885,149.51,149.47,15.5483]
[1728315919794,6.689,149.5,149.47,15.5483]
[1728315921115,6.689,149.5,149.48,1.33779044]
[1728315923090,6.689,149.5,149.47,15.5483]
[1728315923291,23.776884,149.54,149.46,3.49130985]
[1728315923727,15.7724,149.56,149.44,2.99130985]
[1728315923728,6.6905,149.47,149.44,2.99130985]
[1728315923892,6.6907,149.46,149.43,19.42790985]
[1728315924220,23.776884,149.5,149.43,19.42790985]
[1728315924516,6.691,149.46,149.44,1.33816428]
[1728315925209,6.6904,149.47,149.44,1.33816428]
[1728315927520,16.7188,149.54,149.44,20.15832355]
[1728315927717,6.6886,149.51,149.47,6.6902]
[1728315927905,6.689,149.5,149.48,1.33770808]
[1728315928303,6.689,149.5,149.46,25.25405927]
[1728315928615,16.7188,149.54,149.47,1.33780876]
[1728315928817,16.7188,149.54,149.46,25.25405927]
[1728315928999,6.6886,149.51,149.47,23.4156]
[1728315929195,16.7188,149.54,149.46,6.4339]
[1728315929396,6.6895,149.49,149.46,6.4339]
[1728315929799,16.7188,149.54,149.46,6.4339]
[1728315930002,6.6885,149.51,149.47,26.84800616]
[1728315930397,15.7724,149.56,149.47,18.82015927]
[1728315930592,16.7133,149.59,149.51,18.82015927]
[1728315930815,6.6872,149.54,149.51,18.82015927]
[1728315931012,6.6875,149.54,149.49,22.6438]
[1728315931302,6.6875,149.54,149.5,6.6888]
[1728315931497,4.02079595,149.64,149.49,15.9547]
[1728315931498,56.74239946,149.65,149.52,22.779]
[1728315931713,6.685,149.59,149.55,18.82015927]
[1728315932702,16.7082,149.63,149.55,25.50665927]
[1728315932910,6.6845,149.6,149.55,25.50665927]
[1728315933624,6.6854,149.58,149.55,18.82015927]
[1728315934626,16.704,149.67,149.59,6.6849]
[1728315934803,6.683,149.64,149.6,20.15676715]
[1728315935121,16.704,149.67,149.6,1.33660788]
[1728315935122,6.6831,149.63,149.6,1.33660788]
[1728315935323,6.6831,149.63,149.6,20.15676715]
[1728315935522,33.4118,149.65,149.56,15.0347]
[1728315935732,6.6842,149.61,149.56,21.7206]
[1728315936022,6.6842,149.61,149.57,18.82015927]
[1728315936624,6.6842,149.61,149.56,21.7208]
[1728315936802,6.6842,149.61,149.58,1.33674387]
[1728315937228,6.6842,149.61,149.57,18.82015927]
[1728315937423,6.6842,149.61,149.59,1.33675164]
[1728315937725,6.6836,149.62,149.59,20.15691091]
[1728315938414,6.6836,149.62,149.6,1.33664996]
[1728315939109,6.6836,149.62,149.59,18.82015927]
[1728315940228,6.6844,149.61,149.59,18.82015927]
[1728315940417,6.6848,149.6,149.57,18.82015927]
[1728315940602,6.6849,149.59,149.56,15.0347]
[1728315943402,6.6855,149.58,149.56,15.0347]
[1728315944916,6.6848,149.6,149.57,1.33696979]
[1728315945307,16.4523,149.69,149.59,18.82015927]
[1728315945511,33.4047,149.68,149.57,18.82015927]
[1728315945724,6.6845,149.6,149.57,18.82015927]
[1728315946035,6.6841,149.61,149.58,1.33670634]
[1728315946210,6.6832,149.63,149.58,8.02170634]
[1728315946523,6.6832,149.63,149.59,25.50495927]
[1728315947304,16.7058,149.65,149.58,6.4949]
[1728315947535,6.6843,149.61,149.59,1.33663627]
[1728315947713,16.7058,149.65,149.59,1.33663627]
[1728315947714,6.6836,149.62,149.59,1.33663627]
[1728315948217,6.6836,149.62,149.58,13.1801]
[1728315948423,6.6836,149.62,149.6,1.33660749]
[1728315949835,16.7058,149.65,149.6,1.33660749]
[1728315950136,6.6832,149.63,149.6,1.33660749]
[1728315950813,16.703,149.68,149.6,1.33660749]
[1728315951026,6.6828,149.64,149.6,8.02100749]
[1728315951330,6.6828,149.64,149.6,1.33660749]
[1728315951827,16.703,149.68,149.6,1.33660749]
[1728315952135,6.6832,149.63,149.6,1.33660749]
[1728315952429,16.4523,149.69,149.58,6.4949]
[1728315952430,16.7047,149.66,149.58,6.4949]
[1728315952638,23.776884,149.67,149.58,6.4949]
[1728315952809,6.6858,149.57,149.56,15.0347]
[1728315953322,6.6855,149.58,149.56,15.0347]
[1728315954224,6.685,149.59,149.56,15.0347]
[1728315954543,16.7106,149.61,149.53,23.3103]
[1728315954833,6.6859,149.57,149.54,1.33701947]
[1728315955213,6.6863,149.56,149.53,23.3103]
[1728315955414,6.6863,149.56,149.53,6.5916]
[1728315956132,6.6863,149.56,149.54,1.33713419]
[1728315956336,6.6876,149.53,149.52,16.0968]
[1728315956534,6.6876,149.53,149.49,6.6893]
[1728315957211,33.42,149.62,149.5,18.82015927]
[1728315957435,6.6868,149.55,149.51,6.6885]
[1728315958824,6.6873,149.54,149.5,25.50895927]
[1728315959019,6.6873,149.54,149.5,18.82015927]
[1728315959532,6.6879,149.53,149.5,18.82015927]
[1728315959741,6.6873,149.54,149.5,18.82015927]
[1728315960418,6.6868,149.55,149.51,1.33737483]
[1728315960618,23.776884,149.6,149.52,18.82015927]
[1728315960927,6.6871,149.55,149.51,16.7206]
[1728315961131,16.7126,149.59,149.5,25.50895927]
[1728315961436,6.6872,149.54,149.5,25.50895927]
[1728315961948,6.6881,149.52,149.5,18.82015927]
[1728315962146,6.6886,149.51,149.48,58.38765927]
[1728315962328,6.6892,149.5,149.48,16.3549]
[1728315962643,6.6886,149.51,149.45,32.3014]
[1728315962836,6.6886,149.51,149.46,18.82015927]
[1728315964030,6.6886,149.51,149.47,6.6902]
[1728315964423,15.0088,149.56,149.48,18.82015927]
[1728315964625,6.6875,149.54,149.49,6.689]
[1728315964937,6.6879,149.53,149.5,1.33743507]
[1728315965144,6.6879,149.53,149.49,6.6893]
[1728315965450,6.6877,149.53,149.48,25.50965927]
[1728315965634,6.6877,149.53,149.49,1.33748435]
[1728315966349,6.6871,149.55,149.52,18.82015927]
[1728315966748,6.6871,149.55,149.53,1.33724901]
[1728315967321,16.7106,149.61,149.54,18.82015927]
[1728315967545,6.6861,149.57,149.54,18.82015927]
[1728315967749,6.6861,149.57,149.55,1.33710408]
[1728315968746,6.6855,149.58,149.55,1.33710408]
[1728315969644,6.685,149.59,149.55,1.33710408]
[1728315970022,6.685,149.59,149.55,8.02370408]
[1728315970424,16.6047,149.67,149.56,18.82015927]
[1728315970631,6.6818,149.66,149.62,18.82015927]
[1728315970828,16.7005,149.7,149.63,1.33631622]
[1728315971035,6.6818,149.66,149.63,1.33631622]
[1728315971951,16.7005,149.7,149.63,1.33631622]
[1728315972163,6.6814,149.67,149.63,8.01931622]
[1728315972449,6.6819,149.66,149.62,18.82015927]
[1728315972846,6.6819,149.66,149.63,1.33625744]
[1728315973150,6.6814,149.67,149.63,1.33625744]
[1728315973929,6.6814,149.67,149.62,25.50365927]
[1728315974325,16.7005,149.7,149.62,18.82015927]
[1728315974630,23.776884,149.67,149.58,35.53335927]
[1728315974830,6.6835,149.62,149.58,42.21865927]
[1728315975033,6.6835,149.62,149.58,16.7132]
[1728315975547,23.776884,149.68,149.57,22.6712]
[1728315975748,6.6853,149.59,149.57,22.6712]
[1728315976851,6.6853,149.59,149.57,16.6484]
[1728315977553,16.7072,149.64,149.57,16.6484]
[1728315977849,6.6853,149.58,149.54,25.50725927]
[1728315978028,6.685,149.59,149.54,25.50725927]
[1728315978525,6.6836,149.62,149.58,18.82015927]
[1728315978732,6.6836,149.62,149.59,1.3365991]
[1728315979152,16.704,149.67,149.59,1.3365991]
[1728315979340,6.6828,149.64,149.59,8.0214991]
[1728315979847,6.6828,149.64,149.6,40.92365927]
[1728315980344,16.6253,149.69,149.6,40.84995927]
[1728315980536,6.6825,149.65,149.6,47.53425927]
[1728315981750,6.6827,149.64,149.6,47.53425927]
[1728315981939,16.6253,149.69,149.6,22.0298]
[1728315981940,6.6832,149.63,149.6,22.0298]
[1728315982335,16.7051,149.66,149.6,15.4191]
[1728315982541,6.6844,149.61,149.56,48.16315927]
[1728315982739,50.0277,149.69,149.56,22.6569]
[1728315982940,6.6858,149.57,149.56,16.5047]
[1728315983147,32.35576124,149.68,149.56,16.5047]
[1728315983148,16.7061,149.65,149.56,16.5047]
[1728315983658,16.7084,149.63,149.53,23.4061]
[1728315984954,6.96394494,149.62,149.53,23.4061]
[1728315985135,6.6858,149.57,149.53,23.4061]
[1728315985445,6.6858,149.57,149.53,16.7186]
[1728315986844,6.6863,149.56,149.53,16.7186]
[1728315989236,16.7106,149.61,149.52,40.51485927]
[1728315989540,6.6868,149.55,149.52,40.51485927]
[1728315990332,6.6868,149.55,149.53,1.33722288]
[1728315990552,6.6868,149.55,149.52,15.5425]
[1728315991451,16.7152,149.57,149.48,22.7731]
[1728315991764,6.6881,149.52,149.48,22.7731]
[1728315992254,6.6874,149.54,149.49,1.33754769]
[1728315992446,6.6874,149.54,149.5,6.6889]
[1728315992653,6.6874,149.54,149.51,1.33734314]
[1728315993035,16.7152,149.57,149.51,1.33734314]
[1728315993384,6.6866,149.56,149.52,18.82015927]
[1728315993540,6.6866,149.56,149.53,1.33722355]
[1728315993938,6.6864,149.56,149.53,1.33722355]
[1728315994250,6.6867,149.55,149.53,1.33722355]
[1728315995164,6.6867,149.55,149.52,18.82015927]
[1728315995845,16.7118,149.6,149.5,18.82015927]
[1728315996154,6.6884,149.52,149.48,41.59325927]
[1728315996568,6.6884,149.52,149.48,48.28305927]
[1728315996853,6.6877,149.53,149.48,41.59325927]
[1728315997151,6.6877,149.53,149.49,6.6893]
[1728315997359,16.7164,149.56,149.48,41.59325927]
[1728315997529,6.6881,149.52,149.48,48.28295927]
[1728315997844,6.6881,149.52,149.49,1.33752226]
[1728315999059,6.6881,149.52,149.48,48.28295927]
[1728316000758,16.7164,149.56,149.48,41.59325927]
[1728316000937,6.6888,149.51,149.48,16.5515]
[1728316001138,6.6908,149.46,149.44,21.2444]
[1728316001343,16.7227,149.5,149.43,18.82015927]
[1728316001548,6.6907,149.46,149.41,6.7928]
[1728316001864,6.6907,149.46,149.42,8.03048162]
[1728316002358,32.4103,149.5,149.41,18.92015927]
[1728316002552,6.692,149.44,149.41,0.1]
[1728316003537,6.6913,149.45,149.41,0.1]
[1728316004350,16.7253,149.48,149.41,0.1]
[1728316004556,6.6918,149.44,149.41,0.1]
[1728316004776,16.7253,149.48,149.41,0.1]
[1728316004970,6.6913,149.45,149.41,0.1]
[1728316005661,6.6913,149.45,149.41,6.7929]
[1728316006934,6.6913,149.45,149.42,1.33823671]
[1728316007844,6.95892959,149.48,149.45,6.6911]
[1728316008037,15.6876,149.5,149.46,1.33796734]
[1728316008410,6.6894,149.49,149.45,6.6908]
[1728316008540,6.6898,149.48,149.44,23.4201]
[1728316008938,6.6895,149.49,149.45,1.3379398]
[1728316009865,6.6895,149.49,149.45,8.0290398]
[1728316010263,6.6895,149.49,149.45,6.6911]
[1728316010667,6.95825156,149.53,149.47,18.82015927]
[1728316010848,16.1558,149.57,149.51,18.82015927]
[1728316011047,6.6858,149.57,149.52,8.02492018]
[1728316012563,6.6864,149.56,149.52,8.02492018]
[1728316014167,6.6859,149.57,149.52,8.02492018]
[1728316014472,6.6893,149.5,149.47,22.3247]
[1728316014767,15.5985,149.59,149.47,22.3247]
[1728316014768,6.6881,149.52,149.47,29.0149]
[1728316015270,8.56787013,149.56,149.47,22.3247]
[1728316015443,33.1184,149.52,149.42,16.731]
[1728316015781,23.776884,149.51,149.42,16.731]
[1728316015942,6.6908,149.46,149.42,23.4235]
[1728316016765,23.776884,149.51,149.42,16.731]
[1728316016982,6.6925,149.42,149.41,0.1]
[1728316017742,16.7275,149.46,149.41,0.1]
[1728316017743,15.6296,149.44,149.41,0.1]
[1728316017948,16.7275,149.46,149.41,0.1]
[1728316017949,6.6921,149.43,149.41,0.1]
[1728316019067,16.7275,149.46,149.41,0.1]
[1728316019372,6.6925,149.42,149.41,0.1]
[1728316020250,15.6296,149.48,149.41,0.1]
[1728316020670,6.6921,149.43,149.41,0.1]
[1728316020890,6.6917,149.44,149.41,0.1]
[1728316021968,23.776884,149.47,149.41,0.1]
[1728316022173,37.087284,149.42,149.41,0.1]
[1728316025248,37.087284,149.42,149.31,0.1]
[1728316025249,23.776884,149.39,149.31,0.1]
[1728316025566,6.697,149.32,149.31,0.1]
[1728316026753,6.6966,149.33,149.31,0.1]
[1728316027467,15.5679,149.36,149.31,0.1]
[1728316027468,6.697,149.32,149.31,0.1]
[1728316030691,30.473884,149.32,149.31,0.1]
[1728316031990,33.7442992,149.32,149.31,0.1]
[1728316032165,33.7442992,149.32,149.31,0.0001]
[1728316032166,41.11701679,149.32,149.31,0.0001]
[1728316032367,61.11701679,149.32,149.31,0.0001]
[1728316033469,61.11701679,149.32,149.24,0.943952]
[1728316033470,6.7001,149.25,149.24,0.943952]
[1728316035292,30.476984,149.25,149.24,0.943952]
[1728316036593,16.7469,149.29,149.24,0.943952]
[1728316036793,6.6996,149.27,149.24,0.943952]
[1728316036988,6.7001,149.25,149.24,0.943952]
[1728316037894,15.2246,149.31,149.24,0.943952]
[1728316037895,6.6998,149.26,149.24,0.943952]
[1728316038090,6.7001,149.25,149.24,0.943952]
[1728316038263,23.776884,149.3,149.24,0.943952]
[1728316038687,6.6989,149.28,149.24,0.943952]
[1728316038898,16.7442,149.31,149.25,1.3397847]
[1728316039080,16.7442,149.31,149.24,7.644352]
[1728316039391,16.7442,149.31,149.25,1.339773]
[1728316039592,6.6988,149.28,149.24,7.644352]
[1728316039769,16.7442,149.31,149.24,0.943952]
[1728316040087,6.6998,149.26,149.24,0.943952]
[1728316040467,6.7001,149.25,149.24,0.943952]
[1728316043171,16.7463,149.29,149.24,0.943952]
[1728316043370,6.1448,149.34,149.24,0.943952]
[1728316043583,41.83108862,149.36,149.24,0.943952]
[1728316043584,6.6977,149.31,149.27,6.6992]
[1728316043790,50.2153,149.36,149.27,1.33968462]
[1728316044097,6.6978,149.31,149.27,8.03888462]
[1728316044286,6.6973,149.32,149.27,8.03888462]
[1728316044475,16.7387,149.36,149.28,6.6986]
[1728316044670,6.6971,149.32,149.28,6.6986]
[1728316044878,6.6975,149.31,149.27,6.6991]
[1728316045276,6.6974,149.32,149.27,6.6991]
[1728316045479,6.6969,149.33,149.28,23.4451]
[1728316045674,6.6984,149.29,149.26,6.3727]
[1728316045937,6.698,149.3,149.26,6.3727]
[1728316046095,6.697,149.32,149.28,6.6983]
[1728316046783,6.6975,149.31,149.27,16.7475]
[1728316046989,6.698,149.3,149.26,13.0724]
[1728316048996,6.6975,149.31,149.26,6.3727]
[1728316049290,6.6969,149.33,149.28,6.6984]
[1728316049597,16.7397,149.35,149.27,1.33947278]
[1728316049598,6.6974,149.32,149.27,6.6991]
[1728316049902,6.6974,149.32,149.28,6.6987]
[1728316050103,16.7359,149.38,149.29,1.33944601]
[1728316050408,6.6962,149.34,149.3,6.6978]
[1728316050570,16.7359,149.38,149.31,1.33927998]
[1728316050571,6.6957,149.35,149.31,1.33927998]
[1728316050774,6.6962,149.34,149.31,1.33927998]
[1728316051279,6.6966,149.33,149.29,6.6982]
[1728316051674,6.6962,149.34,149.29,6.6982]
[1728316051889,6.6953,149.36,149.32,6.6969]
[1728316052079,16.7359,149.38,149.32,6.6969]
[1728316052080,16.7359,149.38,149.32,1.33914607]
[1728316052284,6.6955,149.36,149.32,8.03604607]
[1728316052698,20.0,149.4,149.32,1.33914607]
[1728316052873,6.6958,149.35,149.31,22.1777]
[1728316053073,6.6958,149.35,149.31,15.4804]
[1728316053296,6.6953,149.36,149.31,15.4804]
[1728316053472,6.6953,149.36,149.32,1.33914206]
[1728316054471,6.6953,149.36,149.31,22.1777]
[1728316054877,6.6958,149.35,149.31,22.1777]
[1728316055077,6.6962,149.34,149.31,15.4804]
[1728316055290,6.697,149.32,149.31,15.4804]
[1728316055491,6.697,149.32,149.27,39.2012]
[1728316055694,26.09347135,149.35,149.27,39.2012]
[1728316055883,6.6969,149.33,149.28,6.6983]
[1728316056194,6.6961,149.34,149.29,16.7456]
[1728316056391,6.6961,149.34,149.3,6.6978]
[1728316056596,6.6961,149.34,149.31,1.33921402]
[1728316057182,6.6961,149.34,149.3,6.6978]
[1728316058097,23.776884,149.41,149.27,45.89066565]
[1728316058297,16.7333,149.41,149.3,30.13616565]
[1728316058606,16.7333,149.41,149.33,16.7411]
[1728316058787,16.7333,149.41,149.34,1.33898571]
[1728316059791,6.6957,149.35,149.31,6.697]
[1728316061197,6.6957,149.35,149.27,45.89066565]
[1728316061198,34.28129345,149.4,149.27,15.7545]
[1728316061404,6.6972,149.32,149.28,6.6986]
[1728316061708,23.776884,149.34,149.27,32.5017]
[1728316061914,6.6971,149.32,149.28,8.03825206]
[1728316062213,16.7399,149.35,149.28,1.33955206]
[1728316062385,16.7362,149.38,149.29,16.7454]
[1728316062895,6.6959,149.35,149.31,6.6974]
[1728316064220,6.6961,149.34,149.3,6.6978]
[1728316064682,16.7362,149.38,149.29,16.7454]
[1728316064886,6.6957,149.35,149.31,6.6974]
[1728316065196,6.6953,149.36,149.32,8.03603305]
[1728316065401,60.509484,149.41,149.33,1.33911392]
[1728316065714,6.6951,149.37,149.33,1.33911392]
[1728316065883,6.6953,149.36,149.32,6.6968]
[1728316066086,6.6959,149.35,149.31,23.4406]
[1728316066620,6.6961,149.34,149.31,16.7433]
[1728316067315,16.735,149.39,149.32,1.3391661]
[1728316067494,6.6952,149.36,149.32,6.6967]
[1728316067695,6.6952,149.36,149.33,1.33905453]
[1728316067995,6.6948,149.37,149.33,8.03545453]
[1728316068435,6.6948,149.37,149.34,1.33905034]
[1728316068908,6.6945,149.38,149.34,8.03515034]
[1728316069497,6.6937,149.4,149.36,6.6951]
[1728316069795,16.7322,149.42,149.35,16.739]
[1728316069994,6.6935,149.4,149.36,6.6951]
[1728316071695,6.6935,149.4,149.37,1.33871984]
[1728316071895,6.6931,149.41,149.37,8.03341984]
[1728316072616,23.776884,149.44,149.37,8.03341984]
[1728316072617,6.6926,149.42,149.38,6.6942]
[1728316072818,6.6926,149.42,149.39,1.33853271]
[1728316073018,6.6921,149.43,149.39,6.6938]
[1728316073210,6.6919,149.44,149.4,1.33842392]
[1728316073390,10.51686343,149.47,149.38,6.6942]
[1728316073724,6.6921,149.43,149.39,6.6938]
[1728316074406,16.7273,149.46,149.37,16.7367]
[1728316074723,6.693,149.41,149.37,23.4314]
[1728316077698,6.6939,149.39,149.35,6.6955]
[1728316078098,6.6943,149.38,149.34,23.4355]
[1728316078298,6.694,149.39,149.35,6.6956]
[1728316079215,23.776884,149.45,149.34,16.7395]
[1728316079402,6.6945,149.38,149.34,23.4355]
[1728316080002,6.6948,149.37,149.33,22.4353]
[1728316080199,6.6952,149.36,149.33,15.7389]
[1728316080622,23.776884,149.39,149.33,15.7389]
[1728316080821,6.6955,149.36,149.33,15.7389]
[1728316081005,6.6948,149.37,149.33,22.4351]
[1728316081322,16.7308,149.43,149.34,1.33888925]
[1728316081504,6.6935,149.4,149.36,6.6952]
[1728316081694,6.6938,149.39,149.37,1.33873149]
[1728316081919,6.6938,149.39,149.33,32.4801]
[1728316082421,23.776884,149.42,149.37,16.7365]
[1728316082607,40.508584,149.42,149.34,16.7395]
[1728316082802,55.5005,149.47,149.33,15.7389]
[1728316082803,1.02308381,149.41,149.33,15.7389]
[1728316083006,1.02308381,149.41,149.32,6.6626]
[1728316083007,23.776884,149.4,149.32,6.6626]
[1728316083206,20.0,149.39,149.29,15.5203]
[1728316083417,6.6973,149.32,149.29,15.5203]